[Event "Slovakia Chess Open 2024"]
[Site "Modra"]
[Date "2024.03.02"]
[Round "3.15"]
[White "Smetana, Peter"]
[Black "Veres, Alex"]
[Result "1-0"]
[ECO "C15"]
[WhiteElo "1993"]
[BlackElo "1584"]
[Annotator "NA"]
[PlyCount "69"]
[EventDate "2024.02.29"]
[EventType "swiss"]
[EventCountry "SVK"]
[SourceTitle "playchess.com"]
[Source "ChessBase"]
[SourceQuality "1"]
[TimeControl "5400+30"]

1. e4 {[%emt 0:00:01]} e6 {[%emt 0:00:07]} 2. Nc3 {[%emt 0:00:18]} d5 {[%emt 0:00:18]} 3. d4 {[%emt 0:00:05]} Bb4 {[%emt 0:00:31]} 4. Nge2 {[%emt 0:00:12]} dxe4 {[%emt 0:01:22]} 5. a3 {[%emt 0:00:05]} Bxc3+ {[%emt 0:02:46]} 6. Nxc3 {[%emt 0:00:09]} Nf6 {[%emt 0:00:35]} 7. Bg5 {[%emt 0:00:07]} Nbd7 {[%emt 0:01:20]} 8. Nxe4 {[%emt 0:00:20]} h6 {[%emt 0:03:54]} 9. Nxf6+ {[%emt 0:00:41]} Nxf6 {[%emt 0:00:12]} 10. Bh4 {[%emt 0:02:48]} c5 {[%emt 0:06:42]} 11. dxc5 {[%emt 0:05:31]} Qxd1+ {[%emt 0:11:25]} 12. Rxd1 {[%emt 0:00:16]} Bd7 {[%emt 0:06:51]} 13. Bxf6 {[%emt 0:02:02]} gxf6 {[%emt 0:00:06]} 14. Bd3 {[%emt 0:01:07]} Bc6 {[%emt 0:01:57]} 15. f3 {[%emt 0:01:21]} f5 {[%emt 0:00:49]} 16. Kf2 {[%emt 0:00:22]} Rc8 {[%emt 0:00:50]} 17. Rhe1 {[%emt 0:00:43]} Kf8 {[%emt 0:00:34]} 18. b4 {[%emt 0:01:09]} a6 {[%emt 0:01:04]} 19. Rd2 {[%emt 0:02:46]} Kg7 {[%emt 0:00:19]} 20. Red1 {[%emt 0:00:23]} Rhd8 {[%emt 0:00:34]} 21. Be2 {[%emt 0:00:11]} Rxd2 {[%emt 0:00:29]} 22. Rxd2 {[%emt 0:00:04]} Kf6 {[%emt 0:00:12]} 23. f4 {[%emt 0:01:21]} Ke7 {[%emt 0:00:43]} 24. Bf3 {[%emt 0:02:05]} Be4 {[%emt 0:01:05]} 25. Ke3 {[%emt 0:01:44]} Bxf3 {[%emt 0:01:34]} 26. Kxf3 {[%emt 0:01:50]} Rg8 {[%emt 0:00:12]} 27. Rd6 {[%emt 0:00:12]} Rd8 {[%emt 0:00:36]} 28. Rb6 {[%emt 0:00:04]} Rd7 {[%emt 0:00:30]} 29. c6 {[%emt 0:00:16]} bxc6 {[%emt 0:00:13]} 30. Rxc6 {[%emt 0:00:04]} Rd6 {[%emt 0:00:08]} 31. Rc7+ {[%emt 0:00:17]} Ke8 {[%emt 0:00:19]} 32. Ke2 {[%emt 0:00:08]} f6 {[%emt 0:00:49]} 33. Rh7 {[%emt 0:03:09]} e5 {[%emt 0:01:15]} 34. Rxh6 {[%emt 0:00:18]} e4 {[%emt 0:00:28]} 35. Rh5 {[%emt 0:00:21]} 1-0

[Event "Slovakia Chess Open 2024"]
[Site "Modra"]
[Date "2024.03.02"]
[Round "3.16"]
[White "Hasala, Richard"]
[Black "Hanzel, Richard"]
[Result "1-0"]
[ECO "D04"]
[WhiteElo "1935"]
[BlackElo "1531"]
[Annotator "NA RC"]
[PlyCount "57"]
[EventDate "2024.02.29"]
[EventType "swiss"]
[EventCountry "SVK"]
[SourceTitle "playchess.com"]
[Source "ChessBase"]
[SourceQuality "1"]
[TimeControl "5400+30"]

1. d4 {[%emt 0:03:27]} d5 {[%emt 0:00:06]} 2. Nf3 {[%emt 0:00:05]} c6 {[%emt 0:00:07]} 3. e3 {[%emt 0:00:06]} Nf6 {[%emt 0:00:07]} 4. Bd3 {[%emt 0:00:05]} Bg4 {[%emt 0:00:19]} 5. h3 {[%emt 0:01:09]} Bh5 {[%emt 0:01:28]} 6. g4 {[%emt 0:02:09]} Bg6 {[%emt 0:00:11]} 7. Ne5 {[%emt 0:00:10]} Bxd3 {[%emt 0:04:00]} 8. cxd3 {[%emt 0:01:10]} e6 {[%emt 0:02:09]} 9. O-O {[%emt 0:01:56]} h6 {[%emt 0:05:28]} 10. f4 {[%emt 0:00:28]} Nfd7 {[%emt 0:02:37]} 11. f5 {[%emt 0:02:29]} Nxe5 {[%emt 0:03:07]} 12. dxe5 {[%emt 0:00:16]} Qe7 {[%emt 0:02:31]} 13. e4 {[%emt 0:08:02]} Nd7 {[%emt 0:03:03]} 14. exd5 {[%emt 0:04:09]} cxd5 {[%emt 0:07:04]} 15. d4 {[%emt 0:08:51]} g5 {[%emt 0:07:47]} 16. Nc3 {[%emt 0:03:06]} a6 {[%emt 0:02:44]} 17. Be3 {[%emt 0:07:34]} Qb4 {[%emt 0:07:23]} 18. fxe6 {[%emt 0:02:09]} fxe6 {[%emt 0:00:36]} 19. Qc2 {[%emt 0:00:14]} Qe7 {[%emt 0:03:15]} 20. Qg6+ {[%emt 0:00:28]} Kd8 {[%emt 0:00:26]} 21. Rac1 {[%emt 0:03:00]} Qe8 {[%emt 0:03:07]} 22. Qc2 {[%emt 0:03:16]} Rc8 {[%emt 0:00:53]} 23. Qb3 {[%emt 0:01:35]} Rb8 {[%emt 0:02:53]} 24. Nxd5 {[%emt 0:08:20]} exd5 {[%emt 0:11:00]} 25. Qxd5 {[%emt 0:00:12]} Be7 {[%emt 0:05:59]} 26. e6 {[%emt 0:02:08]} Rf8 {[%emt 0:01:56]} 27. Bd2 {[%emt 0:05:28]} Rxf1+ {[%emt 0:00:26]} 28. Kxf1 {[%emt 0:00:34]} b6 {[%emt 0:03:17]} 29. Qc6 {[%emt 0:02:20]} 1-0

[Event "Slovakia Chess Open 2024"]
[Site "Modra"]
[Date "2024.03.02"]
[Round "3.17"]
[White "Hitka, Dominik"]
[Black "Fratric, Jakub"]
[Result "1-0"]
[ECO "A00"]
[WhiteElo "1709"]
[BlackElo "1750"]
[Annotator "NA RC"]
[PlyCount "103"]
[EventDate "2024.02.29"]
[EventType "swiss"]
[EventCountry "SVK"]
[SourceTitle "playchess.com"]
[Source "ChessBase"]
[SourceQuality "1"]
[TimeControl "5400+30"]

1. a3 {[%emt 0:00:41]} c5 {[%emt 0:03:14]} 2. f4 {[%emt 0:00:16]} d5 {[%emt 0:01:12]} 3. e3 {[%emt 0:00:17]} g6 {[%emt 0:01:33]} 4. Nf3 {[%emt 0:00:23]} Bg7 {[%emt 0:00:20]} 5. Be2 {[%emt 0:00:34]} Nc6 {[%emt 0:00:22]} 6. O-O {[%emt 0:00:51]} Nh6 {[%emt 0:01:58]} 7. d4 {[%emt 0:02:10]} cxd4 {[%emt 0:07:43]} 8. exd4 {[%emt 0:00:46]} O-O {[%emt 0:00:29]} 9. c3 {[%emt 0:01:02]} Nf5 {[%emt 0:08:12]} 10. Ne5 {[%emt 0:01:30]} f6 {[%emt 0:01:27]} 11. Nd3 {[%emt 0:00:55]} Kh8 {[%emt 0:00:41]} 12. Bf3 {[%emt 0:02:59]} Rb8 {[%emt 0:06:48]} 13. Re1 {[%emt 0:02:12]} Qd6 {[%emt 0:02:58]} 14. Qe2 {[%emt 0:01:48]} Re8 {[%emt 0:00:30]} 15. Nb4 {[%emt 0:04:10]} Bd7 {[%emt 0:18:59]} 16. Qd3 {[%emt 0:06:05]} e6 {[%emt 0:00:55]} 17. Nc2 {[%emt 0:04:10]} Na5 {[%emt 0:09:13]} 18. Ra2 {[%emt 0:11:47]} b5 {[%emt 0:00:40]} 19. Ne3 {[%emt 0:08:40]} Nh4 {[%emt 0:04:45]} 20. Nd2 {[%emt 0:03:14]} Qxf4 {[%emt 0:01:04]} 21. Rf1 {[%emt 0:02:45]} Nxf3+ {[%emt 0:02:52]} 22. Rxf3 {[%emt 0:00:24]} Qd6 {[%emt 0:00:31]} 23. b4 {[%emt 0:01:23]} Nc4 {[%emt 0:01:13]} 24. Nb3 {[%emt 0:00:37]} e5 {[%emt 0:01:23]} 25. Qf1 {[%emt 0:02:01]} e4 {[%emt 0:00:59]} 26. Rff2 {[%emt 0:01:27]} Nb6 {[%emt 0:01:24]} 27. Nc5 {[%emt 0:01:04]} Rf8 {[%emt 0:01:41]} 28. Nc2 {[%emt 0:06:10]} Rbc8 {[%emt 0:00:30]} 29. Bf4 {[%emt 0:00:30]} Qe7 {[%emt 0:00:32]} 30. Ne3 {[%emt 0:00:23]} Bc6 {[%emt 0:01:14]} 31. g4 {[%emt 0:01:09]} Rcd8 {[%emt 0:08:03]} 32. h4 {[%emt 0:01:35]} Nc4 {[%emt 0:00:30]} 33. Nxc4 {[%emt 0:02:13]} dxc4 {[%emt 0:01:05]} 34. Rae2 {[%emt 0:01:00]} Rf7 {[%emt 0:03:28]} 35. Qe1 {[%emt 0:04:04]} f5 {[%emt 0:00:53]} 36. g5 {[%emt 0:00:56]} Re8 {[%emt 0:01:56]} 37. Re3 {[%emt 0:01:13]} Kg8 {[%emt 0:00:30]} 38. Rh2 {[%emt 0:00:30]} Rff8 {[%emt 0:00:53]} 39. Qg3 {[%emt 0:01:03]} Rd8 {[%emt 0:00:29]} 40. Bc7 {[%emt 0:00:41]} Rd5 {[%emt 0:01:09]} 41. Bf4 {[%emt 0:00:28]} Rdd8 {[%emt 0:00:18]} 42. Qh3 {[%emt 0:01:05]} Kf7 {[%emt 0:00:42]} 43. h5 {[%emt 0:00:46]} Rh8 {[%emt 0:00:35]} 44. h6 {[%emt 0:00:47]} Bxd4 {[%emt 0:01:48]} 45. cxd4 {[%emt 0:00:02]} Rxd4 {[%emt 0:00:18]} 46. Qg3 {[%emt 0:00:26]} Rhd8 {[%emt 0:00:51]} 47. Rhe2 {[%emt 0:00:26]} Rd1+ {[%emt 0:00:50]} 48. Re1 {[%emt 0:00:35]} R1d2 {[%emt 0:00:30]} 49. R3e2 {[%emt 0:00:28]} R2d5 {[%emt 0:00:28]} 50. Qf2 {[%emt 0:00:34]} a5 {[%emt 0:00:33]} 51. Nxe4 {[%emt 0:01:17]} Qf8 {[%emt 0:01:31]} 52. Nf6 {[%emt 0:01:21]} 1-0

[Event "Slovakia Chess Open 2024"]
[Site "Modra"]
[Date "2024.03.02"]
[Round "3.18"]
[White "Smolka, Robert"]
[Black "Banas, Samuel"]
[Result "1-0"]
[ECO "C44"]
[WhiteElo "1620"]
[BlackElo "1733"]
[Annotator "NA RC"]
[PlyCount "57"]
[EventDate "2024.02.29"]
[EventType "swiss"]
[EventCountry "SVK"]
[SourceTitle "playchess.com"]
[Source "ChessBase"]
[SourceQuality "1"]
[TimeControl "5400+30"]

1. e4 {[%emt 0:00:05]} e5 {[%emt 0:00:07]} 2. Nf3 {[%emt 0:00:15]} Nc6 {[%emt 0:00:08]} 3. d4 {[%emt 0:00:11]} exd4 {[%emt 0:01:55]} 4. Bc4 {[%emt 0:00:16]} Bc5 {[%emt 0:01:13]} 5. Ng5 {[%emt 0:00:38]} Nh6 {[%emt 0:01:41]} 6. Nxf7 {[%emt 0:00:22]} Nxf7 {[%emt 0:00:34]} 7. Bxf7+ {[%emt 0:00:17]} Kxf7 {[%emt 0:00:43]} 8. Qh5+ {[%emt 0:00:24]} g6 {[%emt 0:01:20]} 9. Qxc5 {[%emt 0:00:40]} d6 {[%emt 0:02:56]} 10. Qb5 {[%emt 0:01:54]} Re8 {[%emt 0:03:17]} 11. O-O {[%emt 0:02:36]} Rxe4 {[%emt 0:02:36]} 12. Qd5+ {[%emt 0:00:36]} Re6 {[%emt 0:00:49]} 13. Re1 {[%emt 0:00:54]} Ne5 {[%emt 0:00:19]} 14. Bf4 {[%emt 0:03:57]} Qf6 {[%emt 0:02:48]} 15. Bg3 {[%emt 0:10:51]} c6 {[%emt 0:01:13]} 16. Qb3 {[%emt 0:00:15]} d5 {[%emt 0:01:48]} 17. Nd2 {[%emt 0:00:33]} b6 {[%emt 0:02:37]} 18. c4 {[%emt 0:09:39]} Bb7 {[%emt 0:01:31]} 19. Rac1 {[%emt 0:03:18]} Rae8 {[%emt 0:00:33]} 20. cxd5 {[%emt 0:01:39]} cxd5 {[%emt 0:00:16]} 21. Rc7+ {[%emt 0:01:24]} R8e7 {[%emt 0:00:15]} 22. Rxe7+ {[%emt 0:23:38]} Qxe7 {[%emt 0:00:36]} 23. Rc1 {[%emt 0:03:52]} Nc4 {[%emt 0:00:28]} 24. Nf3 {[%emt 0:04:42]} Ba6 {[%emt 0:01:12]} 25. h3 {[%emt 0:01:27]} Re2 {[%emt 0:03:27]} 26. Nxd4 {[%emt 0:15:21]} Rxb2 {[%emt 0:02:48]} 27. Qf3+ {[%emt 0:00:51]} Kg7 {[%emt 0:01:56]} 28. Qc3 {[%emt 0:02:55]} Rxa2 {[%emt 0:04:55]} 29. Nf5+ {[%emt 0:00:16]} 1-0

[Event "Slovakia Chess Open 2024"]
[Site "Modra"]
[Date "2024.03.03"]
[Round "4.1"]
[White "Bochnicka, Vladimir"]
[Black "Krivoborodov, Egor"]
[Result "0-1"]
[ECO "B51"]
[WhiteElo "2413"]
[BlackElo "2555"]
[Annotator "RC"]
[PlyCount "124"]
[EventDate "2024.02.29"]
[EventType "swiss"]
[EventCountry "SVK"]
[SourceTitle "playchess.com"]
[Source "ChessBase"]
[SourceQuality "1"]
[TimeControl "5400+30"]

1. e4 {[%emt 0:00:04]} c5 {[%emt 0:05:50]} 2. Nf3 {[%emt 0:00:07]} d6 {[%emt 0:00:04]} 3. Bb5+ {[%emt 0:00:36]} Nd7 {[%emt 0:00:10]} 4. a4 {[%emt 0:00:07]} Ngf6 {[%emt 0:00:17]} 5. Nc3 {[%emt 0:00:07]} a6 {[%emt 0:00:03]} 6. Be2 {[%emt 0:00:09]} b6 {[%emt 0:00:09]} 7. d4 {[%emt 0:02:36]} cxd4 {[%emt 0:00:18]} 8. Qxd4 {[%emt 0:00:08]} Bb7 {[%emt 0:00:29]} 9. O-O {[%emt 0:03:30]} e6 {[%emt 0:01:32]} 10. Be3 {[%emt 0:06:16]} Be7 {[%emt 0:00:10]} 11. Nd2 {[%emt 0:01:00]} O-O {[%emt 0:03:52]} 12. Rfd1 {[%emt 0:06:19]} Rc8 {[%emt 0:09:50]} 13. Nc4 {[%emt 0:14:42]} d5 {[%emt 0:02:14]} 14. exd5 {[%emt 0:00:56]} exd5 {[%emt 0:15:28]} 15. Nd2 {[%emt 0:10:38]} Bc5 {[%emt 0:02:25]} 16. Qf4 {[%emt 0:00:12]} Bxe3 {[%emt 0:00:24]} 17. fxe3 {[%emt 0:02:03]} Qe7 {[%emt 0:06:52]} 18. Nf1 {[%emt 0:01:43]} Rfe8 {[%emt 0:02:37]} 19. Rd2 {[%emt 0:13:28]} Ne5 {[%emt 0:14:10]} 20. Rad1 {[%emt 0:07:15]} Qc5 {[%emt 0:01:11]} 21. Qd4 {[%emt 0:04:11]} Nc4 {[%emt 0:01:13]} 22. Bxc4 {[%emt 0:02:02]} dxc4 {[%emt 0:00:10]} 23. Qxc5 {[%emt 0:00:48]} Rxc5 {[%emt 0:00:02]} 24. Rd6 {[%emt 0:01:13]} Bc6 {[%emt 0:00:31]} 25. Rd8 {[%emt 0:05:13]} Kf8 {[%emt 0:08:35]} 26. Ng3 {[%emt 0:00:05]} Rxd8 {[%emt 0:02:02]} 27. Rxd8+ {[%emt 0:00:05]} Ke7 {[%emt 0:00:03]} 28. Rd4 {[%emt 0:03:26]} b5 {[%emt 0:01:20]} 29. axb5 {[%emt 0:00:05]} axb5 {[%emt 0:00:30]} 30. Nce4 {[%emt 0:04:40]} Nxe4 {[%emt 0:13:35]} 31. Nxe4 {[%emt 0:00:05]} Re5 {[%emt 0:01:54]} 32. Ng3 {[%emt 0:01:51]} g6 {[%emt 0:02:43]} 33. Kf2 {[%emt 0:00:24]} Bb7 {[%emt 0:00:19]} 34. Ne2 {[%emt 0:01:18]} g5 {[%emt 0:05:14]} 35. g4 {[%emt 0:03:53]} f5 {[%emt 0:00:56]} 36. Ng3 {[%emt 0:00:04]} fxg4 {[%emt 0:00:16]} 37. Rxg4 {[%emt 0:01:36]} h6 {[%emt 0:00:12]} 38. Rd4 {[%emt 0:00:26]} Bc8 {[%emt 0:00:39]} 39. e4 {[%emt 0:00:25]} Be6 {[%emt 0:00:37]} 40. Ke3 {[%emt 0:00:20]} b4 {[%emt 0:00:02]} 41. b3 {[%emt 0:02:04]} cxb3 {[%emt 0:00:52]} 42. cxb3 {[%emt 0:00:05]} Rb5 {[%emt 0:00:02]} 43. Nf5+ {[%emt 0:03:27]} Bxf5 {[%emt 0:01:03]} 44. exf5 {[%emt 0:00:04]} Kf6 {[%emt 0:00:07]} 45. Ke4 {[%emt 0:00:39]} Re5+ {[%emt 0:00:48]} 46. Kd3 {[%emt 0:00:05]} Rxf5 {[%emt 0:00:03]} 47. Rxb4 {[%emt 0:00:08]} Rf3+ {[%emt 0:00:07]} 48. Kd4 {[%emt 0:01:06]} Rh3 {[%emt 0:00:12]} 49. Rb6+ {[%emt 0:00:13]} Kf5 {[%emt 0:00:04]} 50. b4 {[%emt 0:00:21]} Rxh2 {[%emt 0:00:02]} 51. b5 {[%emt 0:00:13]} h5 {[%emt 0:00:15]} 52. Rb8 {[%emt 0:00:43]} Kg4 {[%emt 0:00:49]} 53. Kc3 {[%emt 0:01:29]} Rh1 {[%emt 0:00:07]} 54. Kc2 {[%emt 0:00:26]} Rf1 {[%emt 0:00:42]} 55. b6 {[%emt 0:00:11]} Rf6 {[%emt 0:00:37]} 56. Kd3 {[%emt 0:01:16]} h4 {[%emt 0:02:29]} 57. Kd4 {[%emt 0:00:03]} h3 {[%emt 0:00:25]} 58. b7 {[%emt 0:00:52]} Rb6 {[%emt 0:00:22]} 59. Ke4 {[%emt 0:01:53]} Rb1 {[%emt 0:00:51]} 60. Ke5 {[%emt 0:00:29]} h2 {[%emt 0:00:41]} 61. Rh8 {[%emt 0:00:04]} Kg3 {[%emt 0:00:19]} 62. Kf5 {[%emt 0:00:17]} Rb5+ {[%emt 0:00:12]} 0-1

[Event "Slovakia Chess Open 2024"]
[Site "Modra"]
[Date "2024.03.03"]
[Round "4.2"]
[White "Stevik, Patrik"]
[Black "Bucor, Mark"]
[Result "1-0"]
[ECO "D34"]
[WhiteElo "2167"]
[BlackElo "1852"]
[Annotator "RC"]
[PlyCount "89"]
[EventDate "2024.02.29"]
[EventType "swiss"]
[EventCountry "SVK"]
[SourceTitle "playchess.com"]
[Source "ChessBase"]
[SourceQuality "1"]
[TimeControl "5400+30"]

1. Nf3 {[%emt 0:00:02]} c5 {[%emt 0:00:21]} 2. g3 {[%emt 0:00:05]} Nf6 {[%emt 0:00:10]} 3. Bg2 {[%emt 0:00:04]} d5 {[%emt 0:01:39]} 4. O-O {[%emt 0:00:06]} e6 {[%emt 0:00:09]} 5. d4 {[%emt 0:00:05]} Nc6 {[%emt 0:00:10]} 6. c4 {[%emt 0:00:07]} Be7 {[%emt 0:03:51]} 7. cxd5 {[%emt 0:01:37]} exd5 {[%emt 0:00:08]} 8. Nc3 {[%emt 0:00:54]} O-O {[%emt 0:02:39]} 9. Bg5 {[%emt 0:00:14]} cxd4 {[%emt 0:02:22]} 10. Nxd4 {[%emt 0:00:20]} h6 {[%emt 0:04:29]} 11. Bxf6 {[%emt 0:04:09]} Bxf6 {[%emt 0:00:11]} 12. Nb3 {[%emt 0:01:52]} Be6 {[%emt 0:04:32]} 13. Nxd5 {[%emt 0:01:20]} Bxd5 {[%emt 0:09:53]} 14. Qxd5 {[%emt 0:09:26]} Qxd5 {[%emt 0:03:39]} 15. Bxd5 {[%emt 0:01:22]} Bxb2 {[%emt 0:00:07]} 16. Rab1 {[%emt 0:00:04]} Ba3 {[%emt 0:01:29]} 17. Nd2 {[%emt 0:02:42]} Rad8 {[%emt 0:01:33]} 18. e4 {[%emt 0:00:30]} Na5 {[%emt 0:00:29]} 19. Nb3 {[%emt 0:03:37]} b6 {[%emt 0:03:30]} 20. Nxa5 {[%emt 0:00:24]} bxa5 {[%emt 0:00:10]} 21. Rb5 {[%emt 0:01:00]} Bb4 {[%emt 0:00:23]} 22. a3 {[%emt 0:00:05]} a6 {[%emt 0:00:13]} 23. Rb7 {[%emt 0:03:58]} Bxa3 {[%emt 0:00:14]} 24. Ra1 {[%emt 0:00:10]} Bb4 {[%emt 0:00:16]} 25. Rc1 {[%emt 0:00:26]} Bd6 {[%emt 0:23:34]} 26. Rc6 {[%emt 0:01:11]} Be5 {[%emt 0:00:20]} 27. Rxa6 {[%emt 0:00:40]} Rb8 {[%emt 0:02:29]} 28. Rxb8 {[%emt 0:01:06]} Bxb8 {[%emt 0:00:51]} 29. Rxa5 {[%emt 0:00:10]} Kh7 {[%emt 0:00:43]} 30. Ra8 {[%emt 0:02:08]} f6 {[%emt 0:00:33]} 31. Kg2 {[%emt 0:00:33]} Bd6 {[%emt 0:00:33]} 32. Ra6 {[%emt 0:00:11]} Bc7 {[%emt 0:00:18]} 33. f4 {[%emt 0:00:49]} Re8 {[%emt 0:01:08]} 34. h4 {[%emt 0:00:21]} Rb8 {[%emt 0:01:13]} 35. h5 {[%emt 0:00:26]} Rb1 {[%emt 0:07:54]} 36. Rc6 {[%emt 0:01:30]} Bb8 {[%emt 0:03:03]} 37. Bf7 {[%emt 0:01:34]} g5 {[%emt 0:04:53]} 38. hxg6+ {[%emt 0:00:14]} Kg7 {[%emt 0:00:39]} 39. Rc8 {[%emt 0:00:04]} Rb2+ {[%emt 0:00:28]} 40. Kh3 {[%emt 0:00:07]} f5 {[%emt 0:00:24]} 41. e5 {[%emt 0:00:09]} h5 {[%emt 0:01:08]} 42. Rg8+ {[%emt 0:00:08]} Kh6 {[%emt 0:00:14]} 43. Rh8+ {[%emt 0:00:03]} Kg7 {[%emt 0:00:14]} 44. Rh7+ {[%emt 0:00:07]} Kf8 {[%emt 0:00:21]} 45. Bd5 {[%emt 0:00:07]} 1-0

[Event "Slovakia Chess Open 2024"]
[Site "Modra"]
[Date "2024.03.03"]
[Round "4.3"]
[White "Oruzinsky, Juraj"]
[Black "Shirinyan, Daniel"]
[Result "1/2-1/2"]
[ECO "B22"]
[WhiteElo "2160"]
[BlackElo "2177"]
[Annotator "ChessBase"]
[PlyCount "142"]
[EventDate "2024.02.29"]
[EventType "swiss"]
[EventCountry "SVK"]
[SourceTitle "playchess.com"]
[Source "ChessBase"]
[SourceQuality "1"]
[TimeControl "5400+30"]

1. e4 {[%emt 0:00:03]} c5 {[%emt 0:00:03]} 2. c3 {[%emt 0:00:08]} d5 {[%emt 0:02:04]} 3. exd5 {[%emt 0:00:09]} Qxd5 {[%emt 0:00:03]} 4. d4 {[%emt 0:00:17]} Nc6 {[%emt 0:00:06]} 5. Nf3 {[%emt 0:00:04]} Bg4 {[%emt 0:00:06]} 6. Be2 {[%emt 0:00:05]} cxd4 {[%emt 0:00:10]} 7. cxd4 {[%emt 0:00:24]} e6 {[%emt 0:00:07]} 8. Nc3 {[%emt 0:00:07]} Bb4 {[%emt 0:00:06]} 9. O-O {[%emt 0:00:06]} Qa5 {[%emt 0:00:04]} 10. Bd2 {[%emt 0:05:59]} Nf6 {[%emt 0:02:17]} 11. a3 {[%emt 0:00:34]} Bxc3 {[%emt 0:00:04]} 12. bxc3 {[%emt 0:05:26]} Ne4 {[%emt 0:01:57]} 13. h3 {[%emt 0:00:53]} Bh5 {[%emt 0:02:19]} 14. Qc2 {[%emt 0:01:28]} Nxd2 {[%emt 0:01:09]} 15. Qxd2 {[%emt 0:00:11]} O-O {[%emt 0:00:51]} 16. Rfb1 {[%emt 0:00:35]} Qc7 {[%emt 0:04:06]} 17. Rb5 {[%emt 0:07:01]} Bg6 {[%emt 0:00:22]} 18. Bd3 {[%emt 0:00:09]} Rfd8 {[%emt 0:04:38]} 19. Bxg6 {[%emt 0:01:21]} hxg6 {[%emt 0:00:05]} 20. Qe3 {[%emt 0:08:41]} b6 {[%emt 0:11:30]} 21. Rc1 {[%emt 0:12:14]} Rac8 {[%emt 0:12:25]} 22. Qe4 {[%emt 0:09:03]} Ne7 {[%emt 0:05:08]} 23. Ng5 {[%emt 0:11:48]} Qc6 {[%emt 0:12:40]} 24. Rbb1 {[%emt 0:08:33]} Qxe4 {[%emt 0:02:15]} 25. Nxe4 {[%emt 0:00:05]} Rc4 {[%emt 0:09:20]} 26. Nd2 {[%emt 0:02:14]} Ra4 {[%emt 0:00:22]} 27. Rb3 {[%emt 0:10:14]} Nc6 {[%emt 0:04:02]} 28. Rcb1 {[%emt 0:00:50]} Na5 {[%emt 0:00:37]} 29. Rb4 {[%emt 0:00:18]} Rxa3 {[%emt 0:00:14]} 30. Nc4 {[%emt 0:00:06]} Nxc4 {[%emt 0:06:52]} 31. Rxc4 {[%emt 0:00:06]} Ra2 {[%emt 0:02:38]} 32. Rc7 {[%emt 0:02:15]} Rd5 {[%emt 0:01:50]} 33. Rc8+ {[%emt 0:03:12]} Kh7 {[%emt 0:00:06]} 34. Rc7 {[%emt 0:00:08]} Rf5 {[%emt 0:01:46]} 35. f3 {[%emt 0:00:04]} g5 {[%emt 0:02:17]} 36. c4 {[%emt 0:01:27]} Kg6 {[%emt 0:00:52]} 37. c5 {[%emt 0:00:50]} bxc5 {[%emt 0:03:16]} 38. Rxc5 {[%emt 0:00:30]} Rd2 {[%emt 0:09:08]} 39. Rxf5 {[%emt 0:01:27]} exf5 {[%emt 0:00:30]} 40. Ra1 {[%emt 0:01:08]} Rxd4 {[%emt 0:00:09]} 41. Ra6+ {[%emt 0:00:50]} f6 {[%emt 0:00:24]} 42. Rxa7 {[%emt 0:00:10]} Rd2 {[%emt 0:00:11]} 43. g4 {[%emt 0:01:37]} Rd1+ {[%emt 0:00:40]} 44. Kg2 {[%emt 0:00:27]} Rd2+ {[%emt 0:00:03]} 45. Kg1 {[%emt 0:00:06]} f4 {[%emt 0:00:15]} 46. Rb7 {[%emt 0:00:31]} Rd1+ {[%emt 0:00:03]} 47. Kg2 {[%emt 0:00:04]} Ra1 {[%emt 0:00:02]} 48. Rb2 {[%emt 0:01:14]} Rc1 {[%emt 0:00:05]} 49. Ra2 {[%emt 0:00:10]} Rc7 {[%emt 0:00:02]} 50. Rb2 {[%emt 0:00:41]} Ra7 {[%emt 0:00:02]} 51. Rc2 {[%emt 0:00:08]} Re7 {[%emt 0:00:03]} 52. Ra2 {[%emt 0:00:15]} Kf7 {[%emt 0:00:03]} 53. Ra6 {[%emt 0:04:25]} Re2+ {[%emt 0:00:11]} 54. Kg1 {[%emt 0:00:15]} Re7 {[%emt 0:00:11]} 55. Kf2 {[%emt 0:00:23]} Rd7 {[%emt 0:00:02]} 56. Rb6 {[%emt 0:01:26]} Ke7 {[%emt 0:00:03]} 57. Ra6 {[%emt 0:00:14]} Rd2+ {[%emt 0:00:40]} 58. Kg1 {[%emt 0:00:14]} Rd7 {[%emt 0:00:04]} 59. Kf2 {[%emt 0:00:09]} g6 {[%emt 0:00:14]} 60. Ke2 {[%emt 0:05:21]} Rd6 {[%emt 0:00:51]} 61. Rxd6 {[%emt 0:01:09]} Kxd6 {[%emt 0:00:04]} 62. Kd2 {[%emt 0:00:10]} Kc6 {[%emt 0:01:55]} 63. Kc2 {[%emt 0:00:44]} Kb6 {[%emt 0:00:54]} 64. Kb2 {[%emt 0:00:11]} Kc6 {[%emt 0:02:57]} 65. Kc2 {[%emt 0:00:05]} Kd6 {[%emt 0:00:09]} 66. Kd2 {[%emt 0:00:06]} Ke6 {[%emt 0:00:13]} 67. Kc2 {[%emt 0:00:33]} Ke5 {[%emt 0:00:24]} 68. Kc3 {[%emt 0:00:13]} Kd5 {[%emt 0:00:34]} 69. Kd3 {[%emt 0:00:06]} Kc5 {[%emt 0:00:19]} 70. Kc3 {[%emt 0:00:04]} Kd5 {[%emt 0:01:03]} 71. Kd3 {[%emt 0:00:05]} Kc5 {[%emt 0:00:25]} 1/2-1/2